Body Name,Body,Service Division,Expense Type,Date Paid,Transaction Ref,Invoice Amount,Supplier Name
East Lindsey District Council,http://statistics.data.gov.uk/id/local-authority/32UC,AD Capital - Regulation,Professional and Contractors Fees,05/09/2023,30025487,"4,076.58 ",Lincolnshire County Council
East Lindsey District Council,http://statistics.data.gov.uk/id/local-authority/32UC,AD Capital - Strategic Growth and Development,Grants and Contributions to Outside Bodies - No Service Received,05/09/2023,30025377,"25,264.00 ",Magna Vitae
East Lindsey District Council,http://statistics.data.gov.uk/id/local-authority/32UC,AD Capital - Strategic Projects,Professional Fees,05/09/2023,30025007,"4,297.39 ",Boston Borough Council
East Lindsey District Council,http://statistics.data.gov.uk/id/local-authority/32UC,AD Economic Growth,Professional Fees,05/09/2023,30025007,"4,105.72 ",Boston Borough Council
East Lindsey District Council,http://statistics.data.gov.uk/id/local-authority/32UC,AD Economic Growth,Professional Fees,05/09/2023,30025008,"2,770.38 ",Boston Borough Council
East Lindsey District Council,http://statistics.data.gov.uk/id/local-authority/32UC,AD Economic Growth,Professional Fees,05/09/2023,30025082,284.56 ,Boston Borough Council
East Lindsey District Council,http://statistics.data.gov.uk/id/local-authority/32UC,AD Housing & Wellbeing,Bed and Breakfast Accommodation (Homelessness Service),05/09/2023,30025474,660.00 ,Lakeside Hotel
East Lindsey District Council,http://statistics.data.gov.uk/id/local-authority/32UC,AD Housing & Wellbeing,Furniture and Equipment,05/09/2023,30025476,505.00 ,Woodlandz Furnishings GY Ltd
East Lindsey District Council,http://statistics.data.gov.uk/id/local-authority/32UC,AD Housing & Wellbeing,Grants and Contributions to Outside Bodies - No Service Received,05/09/2023,30025447,"18,123.08 ",Princebuild Ltd
East Lindsey District Council,http://statistics.data.gov.uk/id/local-authority/32UC,AD Housing & Wellbeing,Other Miscellaneous Expenses,05/09/2023,30025463,220.00 ,Waste Away Clearance Service
East Lindsey District Council,http://statistics.data.gov.uk/id/local-authority/32UC,AD Housing & Wellbeing,Other Miscellaneous Expenses,05/09/2023,30025473,475.00 ,Class Cleaning of Louth
East Lindsey District Council,http://statistics.data.gov.uk/id/local-authority/32UC,AD Housing & Wellbeing,Professional and Contractors Fees,05/09/2023,30025300,950.00 ,Lincs Digital
East Lindsey District Council,http://statistics.data.gov.uk/id/local-authority/32UC,Development Control,Planning Application Fees,05/09/2023,30025471,693.00 ,Portal Plan Quest Ltd
East Lindsey District Council,http://statistics.data.gov.uk/id/local-authority/32UC,Enabling Activities Housing Development,Grants and Contributions to Outside Bodies - No Service Received,05/09/2023,30025447,"9,061.54 ",Princebuild Ltd
East Lindsey District Council,http://statistics.data.gov.uk/id/local-authority/32UC,Environmental Health,Professional and Contractors Fees,05/09/2023,30024907,469.13 ,ALS Laboratories (UK) Limited
East Lindsey District Council,http://statistics.data.gov.uk/id/local-authority/32UC,Environmental Health,Professional and Contractors Fees,05/09/2023,30025461,650.00 ,Waste Away Clearance Service
East Lindsey District Council,http://statistics.data.gov.uk/id/local-authority/32UC,Growth Relationships & Growth Promotions,Professional and Contractors Fees,05/09/2023,30025443,"3,525.00 ",Stem Architects Ltd
East Lindsey District Council,http://statistics.data.gov.uk/id/local-authority/32UC,Healthy Living Services Manager,Professional and Contractors Fees,05/09/2023,30025300,950.00 ,Lincs Digital
East Lindsey District Council,http://statistics.data.gov.uk/id/local-authority/32UC,Housing & Homelessness,Bed and Breakfast Accommodation (Homelessness Service),05/09/2023,30025474,660.00 ,Lakeside Hotel
East Lindsey District Council,http://statistics.data.gov.uk/id/local-authority/32UC,Housing & Homelessness,Furniture and Equipment,05/09/2023,30025476,505.00 ,Woodlandz Furnishings GY Ltd
East Lindsey District Council,http://statistics.data.gov.uk/id/local-authority/32UC,Housing & Homelessness,Grants and Contributions to Outside Bodies - No Service Received,05/09/2023,30025447,"9,061.54 ",Princebuild Ltd
East Lindsey District Council,http://statistics.data.gov.uk/id/local-authority/32UC,Housing & Homelessness,Other Miscellaneous Expenses,05/09/2023,30025463,220.00 ,Waste Away Clearance Service
East Lindsey District Council,http://statistics.data.gov.uk/id/local-authority/32UC,Housing & Homelessness,Other Miscellaneous Expenses,05/09/2023,30025473,475.00 ,Class Cleaning of Louth
East Lindsey District Council,http://statistics.data.gov.uk/id/local-authority/32UC,Invest East Lindsey,Works to Buildings (Sub Contractors),05/09/2023,30025446,305.25 ,CS Security Solutions Ltd
East Lindsey District Council,http://statistics.data.gov.uk/id/local-authority/32UC,Organisation Improvement & Development,Staff Training Expenses (Non-Payroll),05/09/2023,30025221,"4,160.00 ",Imagine Public Services Ltd
East Lindsey District Council,http://statistics.data.gov.uk/id/local-authority/32UC,"Performance, Governance & Commissioning",Agency Staff,05/09/2023,30025482,915.07 ,Hays Specialist Recruitment Limited
East Lindsey District Council,http://statistics.data.gov.uk/id/local-authority/32UC,"Performance, Governance & Commissioning",Postages,05/09/2023,30025488,430.32 ,Royal Mail Group Ltd
East Lindsey District Council,http://statistics.data.gov.uk/id/local-authority/32UC,"Performance, Governance & Commissioning",Postages,05/09/2023,30025494,"2,696.96 ",Royal Mail Group Ltd
East Lindsey District Council,http://statistics.data.gov.uk/id/local-authority/32UC,"Performance, Governance & Commissioning",Staff Training Expenses (Non-Payroll),05/09/2023,30024747,"1,034.60 ",Fifield Training Ltd
East Lindsey District Council,http://statistics.data.gov.uk/id/local-authority/32UC,Waste,Agency Staff,05/09/2023,30025437,"5,000.93 ",Red Rock Partnership Ltd
East Lindsey District Council,http://statistics.data.gov.uk/id/local-authority/32UC,Waste,Workshop Parts,05/09/2023,30025339,338.12 ,Bucher Municipal
East Lindsey District Council,http://statistics.data.gov.uk/id/local-authority/32UC,Waste,Workshop Parts,05/09/2023,30025340,344.00 ,Bucher Municipal
East Lindsey District Council,http://statistics.data.gov.uk/id/local-authority/32UC,AD Capital - Regulation,Other Private Contractors,08/09/2023,30025606,"11,936.04 ",Foundations and Buildings Ltd
East Lindsey District Council,http://statistics.data.gov.uk/id/local-authority/32UC,AD Capital - Strategic Projects,Professional and Contractors Fees,08/09/2023,30025537,"377,227.00 ",Lindum Group Ltd
East Lindsey District Council,http://statistics.data.gov.uk/id/local-authority/32UC,AD Housing & Wellbeing,Grants and Contributions - Where a Service is Received,08/09/2023,30025448,"2,000.00 ",GPC Specialist Tearoom C.I.C
East Lindsey District Council,http://statistics.data.gov.uk/id/local-authority/32UC,AD Housing & Wellbeing,Grants and Contributions to Outside Bodies - No Service Received,08/09/2023,30025496,"19,189.74 ",Whitehead and Son
East Lindsey District Council,http://statistics.data.gov.uk/id/local-authority/32UC,AD Housing & Wellbeing,Grants and Contributions to Outside Bodies - No Service Received,08/09/2023,30025497,"12,038.44 ",Kes Building
East Lindsey District Council,http://statistics.data.gov.uk/id/local-authority/32UC,AD Housing & Wellbeing,Grants and Contributions to Outside Bodies - No Service Received,08/09/2023,30025499,"12,671.32 ",Dave Howard Building and Joinery Serv
East Lindsey District Council,http://statistics.data.gov.uk/id/local-authority/32UC,AD Housing & Wellbeing,Grants and Contributions to Outside Bodies - No Service Received,08/09/2023,30025500,"22,468.80 ",Kes Building
East Lindsey District Council,http://statistics.data.gov.uk/id/local-authority/32UC,AD Housing & Wellbeing,Grants and Contributions to Outside Bodies - No Service Received,08/09/2023,30025609,"9,824.00 ",Dolphin Mobility
East Lindsey District Council,http://statistics.data.gov.uk/id/local-authority/32UC,AD Housing & Wellbeing,Grants and Contributions to Outside Bodies - No Service Received,08/09/2023,30025610,"11,615.88 ",R A Joinery
East Lindsey District Council,http://statistics.data.gov.uk/id/local-authority/32UC,AD Housing & Wellbeing,Grants and Contributions to Outside Bodies - No Service Received,08/09/2023,30025636,"12,311.44 ",Denniss and Marwood Ltd
East Lindsey District Council,http://statistics.data.gov.uk/id/local-authority/32UC,AD Housing & Wellbeing,Other Miscellaneous Expenses,08/09/2023,30025460,320.00 ,Waste Away Clearance Service
East Lindsey District Council,http://statistics.data.gov.uk/id/local-authority/32UC,AD Housing & Wellbeing,Other Miscellaneous Expenses,08/09/2023,30025548,350.00 ,Waste Away Clearance Service
East Lindsey District Council,http://statistics.data.gov.uk/id/local-authority/32UC,AD Leisure & Culture,Water and Sewerage Charges,08/09/2023,30025613,"1,632.60 ",Wave Anglian Water Business National Ltd
East Lindsey District Council,http://statistics.data.gov.uk/id/local-authority/32UC,Building Control,Other Private Contractors,08/09/2023,30025606,"5,968.02 ",Foundations and Buildings Ltd
East Lindsey District Council,http://statistics.data.gov.uk/id/local-authority/32UC,Business Manager - Towns Fund,Professional Fees,08/09/2023,30025432,"11,787.20 ",Heritage Trust of Lincolnshire Ltd
East Lindsey District Council,http://statistics.data.gov.uk/id/local-authority/32UC,Enabling Activities Housing Development,Grants and Contributions to Outside Bodies - No Service Received,08/09/2023,30025496,"9,594.87 ",Whitehead and Son
East Lindsey District Council,http://statistics.data.gov.uk/id/local-authority/32UC,Enabling Activities Housing Development,Grants and Contributions to Outside Bodies - No Service Received,08/09/2023,30025497,"6,019.22 ",Kes Building
East Lindsey District Council,http://statistics.data.gov.uk/id/local-authority/32UC,Enabling Activities Housing Development,Grants and Contributions to Outside Bodies - No Service Received,08/09/2023,30025499,"6,335.66 ",Dave Howard Building and Joinery Serv
East Lindsey District Council,http://statistics.data.gov.uk/id/local-authority/32UC,Enabling Activities Housing Development,Grants and Contributions to Outside Bodies - No Service Received,08/09/2023,30025500,"11,234.40 ",Kes Building
East Lindsey District Council,http://statistics.data.gov.uk/id/local-authority/32UC,Enabling Activities Housing Development,Grants and Contributions to Outside Bodies - No Service Received,08/09/2023,30025609,"4,912.00 ",Dolphin Mobility
East Lindsey District Council,http://statistics.data.gov.uk/id/local-authority/32UC,Enabling Activities Housing Development,Grants and Contributions to Outside Bodies - No Service Received,08/09/2023,30025610,"5,807.94 ",R A Joinery
East Lindsey District Council,http://statistics.data.gov.uk/id/local-authority/32UC,Enabling Activities Housing Development,Grants and Contributions to Outside Bodies - No Service Received,08/09/2023,30025636,"6,155.72 ",Denniss and Marwood Ltd
East Lindsey District Council,http://statistics.data.gov.uk/id/local-authority/32UC,Housing & Homelessness,Grants and Contributions to Outside Bodies - No Service Received,08/09/2023,30025496,"9,594.87 ",Whitehead and Son
East Lindsey District Council,http://statistics.data.gov.uk/id/local-authority/32UC,Housing & Homelessness,Grants and Contributions to Outside Bodies - No Service Received,08/09/2023,30025497,"6,019.22 ",Kes Building
East Lindsey District Council,http://statistics.data.gov.uk/id/local-authority/32UC,Housing & Homelessness,Grants and Contributions to Outside Bodies - No Service Received,08/09/2023,30025499,"6,335.66 ",Dave Howard Building and Joinery Serv
East Lindsey District Council,http://statistics.data.gov.uk/id/local-authority/32UC,Housing & Homelessness,Grants and Contributions to Outside Bodies - No Service Received,08/09/2023,30025500,"11,234.40 ",Kes Building
East Lindsey District Council,http://statistics.data.gov.uk/id/local-authority/32UC,Housing & Homelessness,Grants and Contributions to Outside Bodies - No Service Received,08/09/2023,30025609,"4,912.00 ",Dolphin Mobility
East Lindsey District Council,http://statistics.data.gov.uk/id/local-authority/32UC,Housing & Homelessness,Grants and Contributions to Outside Bodies - No Service Received,08/09/2023,30025610,"5,807.94 ",R A Joinery
East Lindsey District Council,http://statistics.data.gov.uk/id/local-authority/32UC,Housing & Homelessness,Grants and Contributions to Outside Bodies - No Service Received,08/09/2023,30025636,"6,155.72 ",Denniss and Marwood Ltd
East Lindsey District Council,http://statistics.data.gov.uk/id/local-authority/32UC,Housing & Homelessness,Other Miscellaneous Expenses,08/09/2023,30025460,320.00 ,Waste Away Clearance Service
East Lindsey District Council,http://statistics.data.gov.uk/id/local-authority/32UC,Housing & Homelessness,Other Miscellaneous Expenses,08/09/2023,30025548,350.00 ,Waste Away Clearance Service
East Lindsey District Council,http://statistics.data.gov.uk/id/local-authority/32UC,Neighbourhoods,Agency Staff,08/09/2023,30025571,"5,768.12 ",The Workshop (Wisbech) Ltd
East Lindsey District Council,http://statistics.data.gov.uk/id/local-authority/32UC,Neighbourhoods,Buildings Maintenance - Responsive,08/09/2023,30025512,528.00 ,Second Element Limited
East Lindsey District Council,http://statistics.data.gov.uk/id/local-authority/32UC,Neighbourhoods,Materials and Consumables,08/09/2023,30025440,"2,533.27 ",Burdens Group Ltd
East Lindsey District Council,http://statistics.data.gov.uk/id/local-authority/32UC,Neighbourhoods,Materials and Consumables,08/09/2023,30025576,505.25 ,Eastern Shires Purchasing Organisation
East Lindsey District Council,http://statistics.data.gov.uk/id/local-authority/32UC,Neighbourhoods,Professional and Contractors Fees,08/09/2023,30025574,280.00 ,H Pawson and Son
East Lindsey District Council,http://statistics.data.gov.uk/id/local-authority/32UC,Neighbourhoods,Vehicle Hire,08/09/2023,30025438,"1,150.00 ",Burdens Group Ltd
East Lindsey District Council,http://statistics.data.gov.uk/id/local-authority/32UC,Neighbourhoods,Water and Sewerage Charges,08/09/2023,30025637,"4,268.94 ",Clear Business
East Lindsey District Council,http://statistics.data.gov.uk/id/local-authority/32UC,"Performance, Governance & Commissioning",Grants and Contributions to Outside Bodies - No Service Received,08/09/2023,30025514,474.00 ,Trusthorpe Village Hall
East Lindsey District Council,http://statistics.data.gov.uk/id/local-authority/32UC,"Performance, Governance & Commissioning",Grants and Contributions to Outside Bodies - No Service Received,08/09/2023,30025518,500.00 ,Skegness and Winthorpe Parochial Church Council
East Lindsey District Council,http://statistics.data.gov.uk/id/local-authority/32UC,"Performance, Governance & Commissioning",Grants and Contributions to Outside Bodies - No Service Received,08/09/2023,30025520,"1,000.00 ",Goldwing Owners Club of GB
East Lindsey District Council,http://statistics.data.gov.uk/id/local-authority/32UC,Property,Agency Staff,08/09/2023,30025629,"1,206.20 ",The Workshop (Wisbech) Ltd
East Lindsey District Council,http://statistics.data.gov.uk/id/local-authority/32UC,Property,Buildings Maintenance - Programmed,08/09/2023,30025617,258.00 ,Smith of Derby
East Lindsey District Council,http://statistics.data.gov.uk/id/local-authority/32UC,Property,Buildings Maintenance - Responsive,08/09/2023,30025512,528.00 ,Second Element Limited
East Lindsey District Council,http://statistics.data.gov.uk/id/local-authority/32UC,Property,Other Communication Costs,08/09/2023,30025550,300.00 ,Digicube Ltd
East Lindsey District Council,http://statistics.data.gov.uk/id/local-authority/32UC,Property,Other Communication Costs,08/09/2023,30025551,300.00 ,Digicube Ltd
East Lindsey District Council,http://statistics.data.gov.uk/id/local-authority/32UC,Property,Other Private Contractors,08/09/2023,30025508,285.00 ,Dave Skells Traffic Management Ltd
East Lindsey District Council,http://statistics.data.gov.uk/id/local-authority/32UC,Property,Professional and Contractors Fees,08/09/2023,30025561,"1,395.00 ",M.A.P Security Solutions Ltd
East Lindsey District Council,http://statistics.data.gov.uk/id/local-authority/32UC,Property,Professional and Contractors Fees,08/09/2023,30025562,576.00 ,M.A.P Security Solutions Ltd
East Lindsey District Council,http://statistics.data.gov.uk/id/local-authority/32UC,Property,Professional and Contractors Fees,08/09/2023,30025578,"1,400.00 ",Freeths LLP
East Lindsey District Council,http://statistics.data.gov.uk/id/local-authority/32UC,Property,Rent Payments,08/09/2023,30025480,"1,494.67 ",Lincolnshire County Council
East Lindsey District Council,http://statistics.data.gov.uk/id/local-authority/32UC,Property,Water and Sewerage Charges,08/09/2023,30025623,272.39 ,Wave Anglian Water Business National Ltd
East Lindsey District Council,http://statistics.data.gov.uk/id/local-authority/32UC,Property,Water and Sewerage Charges,08/09/2023,30025637,"4,272.94 ",Clear Business
East Lindsey District Council,http://statistics.data.gov.uk/id/local-authority/32UC,Transformation Services Manager,Grants and Contributions - Where a Service is Received,08/09/2023,30025448,"2,000.00 ",GPC Specialist Tearoom C.I.C
East Lindsey District Council,http://statistics.data.gov.uk/id/local-authority/32UC,Waste,Workshop Parts,08/09/2023,30025519,363.04 ,N T Shaw of Louth
East Lindsey District Council,http://statistics.data.gov.uk/id/local-authority/32UC,Property,Gas,11/09/2023,30025717,316.37 ,Espo Gas and Electricity
East Lindsey District Council,http://statistics.data.gov.uk/id/local-authority/32UC,Property,Gas,11/09/2023,30025718,518.91 ,Espo Gas and Electricity
East Lindsey District Council,http://statistics.data.gov.uk/id/local-authority/32UC,Property,Gas,11/09/2023,30025723,734.29 ,Espo Gas and Electricity
East Lindsey District Council,http://statistics.data.gov.uk/id/local-authority/32UC,AD Capital - Regulation,Other Private Contractors,12/09/2023,30025643,"11,836.54 ",Foundations and Buildings Ltd
East Lindsey District Council,http://statistics.data.gov.uk/id/local-authority/32UC,AD Capital - Regulation,Professional and Contractors Fees,12/09/2023,30025699,"5,232.60 ",BRG Interim Solutions Ltd
East Lindsey District Council,http://statistics.data.gov.uk/id/local-authority/32UC,AD Capital - Regulation,Professional and Contractors Fees,12/09/2023,30025709,"5,956.00 ",Boston Borough Council
East Lindsey District Council,http://statistics.data.gov.uk/id/local-authority/32UC,AD Housing & Wellbeing,Rent Payments,12/09/2023,30025665,486.29 ,Platform Housing Limited
East Lindsey District Council,http://statistics.data.gov.uk/id/local-authority/32UC,AD Housing & Wellbeing,Rent Payments,12/09/2023,30025666,407.43 ,Platform Housing Limited
East Lindsey District Council,http://statistics.data.gov.uk/id/local-authority/32UC,AD Housing & Wellbeing,Rent Payments,12/09/2023,30025667,340.02 ,Platform Housing Limited
East Lindsey District Council,http://statistics.data.gov.uk/id/local-authority/32UC,AD Housing & Wellbeing,Rent Payments,12/09/2023,30025668,619.91 ,Platform Housing Limited
East Lindsey District Council,http://statistics.data.gov.uk/id/local-authority/32UC,AD Housing & Wellbeing,Rent Payments,12/09/2023,30025669,418.74 ,Platform Housing Limited
East Lindsey District Council,http://statistics.data.gov.uk/id/local-authority/32UC,AD Housing & Wellbeing,Rent Payments,12/09/2023,30025670,684.87 ,Platform Housing Limited
East Lindsey District Council,http://statistics.data.gov.uk/id/local-authority/32UC,AD Housing & Wellbeing,Rent Payments,12/09/2023,30025677,418.74 ,Platform Housing Limited
East Lindsey District Council,http://statistics.data.gov.uk/id/local-authority/32UC,AD Housing & Wellbeing,Rent Payments,12/09/2023,30025689,462.01 ,Platform Housing Limited
East Lindsey District Council,http://statistics.data.gov.uk/id/local-authority/32UC,Building Control,Other Private Contractors,12/09/2023,30025643,"5,918.27 ",Foundations and Buildings Ltd
East Lindsey District Council,http://statistics.data.gov.uk/id/local-authority/32UC,Building Control,Professional and Contractors Fees,12/09/2023,30025699,"2,616.30 ",BRG Interim Solutions Ltd
East Lindsey District Council,http://statistics.data.gov.uk/id/local-authority/32UC,Building Control,Professional and Contractors Fees,12/09/2023,30025709,"2,978.00 ",Boston Borough Council
East Lindsey District Council,http://statistics.data.gov.uk/id/local-authority/32UC,Business Manager - Towns Fund,Professional and Contractors Fees,12/09/2023,30025674,"14,566.00 ",Boston Borough Council
East Lindsey District Council,http://statistics.data.gov.uk/id/local-authority/32UC,Business Manager - Towns Fund,Professional and Contractors Fees,12/09/2023,30025695,550.00 ,The Engaging People Company
East Lindsey District Council,http://statistics.data.gov.uk/id/local-authority/32UC,Environmental Health,Professional and Contractors Fees,12/09/2023,30025523,620.00 ,Pell Plant Hire Ltd
East Lindsey District Council,http://statistics.data.gov.uk/id/local-authority/32UC,Environmental Health,Professional and Contractors Fees,12/09/2023,30025553,350.00 ,Foxhall Construction Ltd
East Lindsey District Council,http://statistics.data.gov.uk/id/local-authority/32UC,Growth Relationships & Growth Promotions,Professional and Contractors Fees,12/09/2023,30025594,"1,500.00 ",Imagine Public Services Ltd
East Lindsey District Council,http://statistics.data.gov.uk/id/local-authority/32UC,Housing & Homelessness,Rent Payments,12/09/2023,30025665,486.29 ,Platform Housing Limited
East Lindsey District Council,http://statistics.data.gov.uk/id/local-authority/32UC,Housing & Homelessness,Rent Payments,12/09/2023,30025666,407.43 ,Platform Housing Limited
East Lindsey District Council,http://statistics.data.gov.uk/id/local-authority/32UC,Housing & Homelessness,Rent Payments,12/09/2023,30025667,340.02 ,Platform Housing Limited
East Lindsey District Council,http://statistics.data.gov.uk/id/local-authority/32UC,Housing & Homelessness,Rent Payments,12/09/2023,30025668,619.91 ,Platform Housing Limited
East Lindsey District Council,http://statistics.data.gov.uk/id/local-authority/32UC,Housing & Homelessness,Rent Payments,12/09/2023,30025669,418.74 ,Platform Housing Limited
East Lindsey District Council,http://statistics.data.gov.uk/id/local-authority/32UC,Housing & Homelessness,Rent Payments,12/09/2023,30025670,684.87 ,Platform Housing Limited
East Lindsey District Council,http://statistics.data.gov.uk/id/local-authority/32UC,Housing & Homelessness,Rent Payments,12/09/2023,30025677,418.74 ,Platform Housing Limited
East Lindsey District Council,http://statistics.data.gov.uk/id/local-authority/32UC,Housing & Homelessness,Rent Payments,12/09/2023,30025689,462.01 ,Platform Housing Limited
East Lindsey District Council,http://statistics.data.gov.uk/id/local-authority/32UC,Invest East Lindsey,Works to Buildings (Main Contractor),12/09/2023,30025676,752.34 ,Huws Gray Buildbase
East Lindsey District Council,http://statistics.data.gov.uk/id/local-authority/32UC,Neighbourhoods,Professional and Contractors Fees,12/09/2023,30025706,228.96 ,Sid Dennis and Sons Ltd
East Lindsey District Council,http://statistics.data.gov.uk/id/local-authority/32UC,"Performance, Governance & Commissioning",Agency Staff,12/09/2023,30025673,733.31 ,Hays Specialist Recruitment Limited
East Lindsey District Council,http://statistics.data.gov.uk/id/local-authority/32UC,Property,Buildings Maintenance - Responsive,12/09/2023,30025640,480.00 ,A C Property Maintenance Ltd
East Lindsey District Council,http://statistics.data.gov.uk/id/local-authority/32UC,Property,Maintenance,12/09/2023,30025729,"1,550.01 ",Chandlers (Farm Equipment) Ltd
East Lindsey District Council,http://statistics.data.gov.uk/id/local-authority/32UC,Property,Professional and Contractors Fees,12/09/2023,30025556,213.09 ,Sid Dennis and Sons Ltd
East Lindsey District Council,http://statistics.data.gov.uk/id/local-authority/32UC,Property,Professional and Contractors Fees,12/09/2023,30025732,980.00 ,Lincs Design Consultancy Ltd
East Lindsey District Council,http://statistics.data.gov.uk/id/local-authority/32UC,East Lindsey Balance Sheet,Long Term Debtors - Other,13/09/2023,30025847,"5,440.00 ",�Personal Information Redacted�
East Lindsey District Council,http://statistics.data.gov.uk/id/local-authority/32UC,AD Housing & Wellbeing,Electricity,14/09/2023,30025755,774.44 ,OVO Energy Ltd.
East Lindsey District Council,http://statistics.data.gov.uk/id/local-authority/32UC,AD Housing & Wellbeing,Gas,14/09/2023,30025755,725.65 ,OVO Energy Ltd.
East Lindsey District Council,http://statistics.data.gov.uk/id/local-authority/32UC,AD Housing & Wellbeing,Grants and Contributions to Outside Bodies - No Service Received,14/09/2023,30025758,"15,057.84 ",Belton Construction
East Lindsey District Council,http://statistics.data.gov.uk/id/local-authority/32UC,AD Housing & Wellbeing,Grants and Contributions to Outside Bodies - No Service Received,14/09/2023,30025759,"17,894.42 ",Denniss and Marwood Ltd
East Lindsey District Council,http://statistics.data.gov.uk/id/local-authority/32UC,AD Housing & Wellbeing,Grants and Contributions to Outside Bodies - No Service Received,14/09/2023,30025760,"25,739.14 ",Mark Donner Ltd
East Lindsey District Council,http://statistics.data.gov.uk/id/local-authority/32UC,AD Housing & Wellbeing,Grants and Contributions to Outside Bodies - No Service Received,14/09/2023,30025762,"30,000.00 ",Lincolnshire Community Foundation
East Lindsey District Council,http://statistics.data.gov.uk/id/local-authority/32UC,AD Organisational & Corporate Services,Purchase of Hardware,14/09/2023,30025737,"13,795.50 ",Public Sector Partnership Services Ltd
East Lindsey District Council,http://statistics.data.gov.uk/id/local-authority/32UC,Climate Change and Environment,Professional Fees,14/09/2023,30025770,"10,884.28 ",Everwarm Ltd
East Lindsey District Council,http://statistics.data.gov.uk/id/local-authority/32UC,Development Control,Professional and Contractors Fees,14/09/2023,30025707,750.00 ,Mark Simmonds Planning Services
East Lindsey District Council,http://statistics.data.gov.uk/id/local-authority/32UC,Enabling Activities Housing Development,Grants and Contributions to Outside Bodies - No Service Received,14/09/2023,30025758,"7,528.92 ",Belton Construction
East Lindsey District Council,http://statistics.data.gov.uk/id/local-authority/32UC,Enabling Activities Housing Development,Grants and Contributions to Outside Bodies - No Service Received,14/09/2023,30025759,"8,947.21 ",Denniss and Marwood Ltd
East Lindsey District Council,http://statistics.data.gov.uk/id/local-authority/32UC,Enabling Activities Housing Development,Grants and Contributions to Outside Bodies - No Service Received,14/09/2023,30025760,"12,869.57 ",Mark Donner Ltd
East Lindsey District Council,http://statistics.data.gov.uk/id/local-authority/32UC,Enforcement,Legal Fees,14/09/2023,30025814,260.00 ,Chattertons Solicitors and Wealth Management
East Lindsey District Council,http://statistics.data.gov.uk/id/local-authority/32UC,Environmental Health,Professional and Contractors Fees,14/09/2023,30024908,469.13 ,ALS Laboratories (UK) Limited
East Lindsey District Council,http://statistics.data.gov.uk/id/local-authority/32UC,Environmental Health,Professional and Contractors Fees,14/09/2023,30025198,"1,508.81 ",Cracknell Wildlife & Veterinary Services
East Lindsey District Council,http://statistics.data.gov.uk/id/local-authority/32UC,Environmental Health,Professional and Contractors Fees,14/09/2023,30025765,"1,750.00 ",Garry Smith Roofing & Building
East Lindsey District Council,http://statistics.data.gov.uk/id/local-authority/32UC,Growth Relationships & Growth Promotions,Performers and Entertainers Fees,14/09/2023,30025788,770.00 ,K J Entertainment
East Lindsey District Council,http://statistics.data.gov.uk/id/local-authority/32UC,Healthy Living Services Manager,Grants and Contributions to Outside Bodies - No Service Received,14/09/2023,30025762,"30,000.00 ",Lincolnshire Community Foundation
East Lindsey District Council,http://statistics.data.gov.uk/id/local-authority/32UC,Housing & Homelessness,Electricity,14/09/2023,30025755,774.44 ,OVO Energy Ltd.
East Lindsey District Council,http://statistics.data.gov.uk/id/local-authority/32UC,Housing & Homelessness,Gas,14/09/2023,30025755,725.65 ,OVO Energy Ltd.
East Lindsey District Council,http://statistics.data.gov.uk/id/local-authority/32UC,Housing & Homelessness,Grants and Contributions to Outside Bodies - No Service Received,14/09/2023,30025758,"7,528.92 ",Belton Construction
East Lindsey District Council,http://statistics.data.gov.uk/id/local-authority/32UC,Housing & Homelessness,Grants and Contributions to Outside Bodies - No Service Received,14/09/2023,30025759,"8,947.21 ",Denniss and Marwood Ltd
East Lindsey District Council,http://statistics.data.gov.uk/id/local-authority/32UC,Housing & Homelessness,Grants and Contributions to Outside Bodies - No Service Received,14/09/2023,30025760,"12,869.57 ",Mark Donner Ltd
East Lindsey District Council,http://statistics.data.gov.uk/id/local-authority/32UC,Information Technology,Computer Software Purchase,14/09/2023,30025739,"1,214.25 ",Public Sector Partnership Services Ltd
East Lindsey District Council,http://statistics.data.gov.uk/id/local-authority/32UC,Information Technology,Mobile Phones,14/09/2023,30025738,834.74 ,Public Sector Partnership Services Ltd
East Lindsey District Council,http://statistics.data.gov.uk/id/local-authority/32UC,Information Technology,Purchase of Hardware,14/09/2023,30025737,"13,795.50 ",Public Sector Partnership Services Ltd
East Lindsey District Council,http://statistics.data.gov.uk/id/local-authority/32UC,Neighbourhoods,Agency Staff,14/09/2023,30025794,"6,655.80 ",The Workshop (Wisbech) Ltd
East Lindsey District Council,http://statistics.data.gov.uk/id/local-authority/32UC,"Performance, Governance & Commissioning",Grants and Contributions to Outside Bodies - No Service Received,14/09/2023,30025761,500.00 ,3rd Louth Brownies
East Lindsey District Council,http://statistics.data.gov.uk/id/local-authority/32UC,Planning Policy,Grants and Contributions to Outside Bodies - No Service Received,14/09/2023,30025756,"10,072.28 ",NHS Lincolnshire Clinical Commissioning Group
East Lindsey District Council,http://statistics.data.gov.uk/id/local-authority/32UC,Property,Grounds Maintenance Contract (External),14/09/2023,30025791,300.00 ,Wold Tree Works Limited
East Lindsey District Council,http://statistics.data.gov.uk/id/local-authority/32UC,Property,Grounds Maintenance Contract (External),14/09/2023,30025792,350.00 ,Wold Tree Works Limited
East Lindsey District Council,http://statistics.data.gov.uk/id/local-authority/32UC,Property,Maintenance,14/09/2023,30025786,576.00 ,The Tractor Shop
East Lindsey District Council,http://statistics.data.gov.uk/id/local-authority/32UC,AD Capital - Operations,Purchase of Vehicles,19/09/2023,30025731,"61,600.00 ",Motus Commercials
East Lindsey District Council,http://statistics.data.gov.uk/id/local-authority/32UC,AD Capital - Regulation,Professional and Contractors Fees,19/09/2023,30025540,"3,020.70 ",G2 Recruitment Solutions
East Lindsey District Council,http://statistics.data.gov.uk/id/local-authority/32UC,AD Capital - Regulation,Professional and Contractors Fees,19/09/2023,30025698,"4,111.20 ",BRG Interim Solutions Ltd
East Lindsey District Council,http://statistics.data.gov.uk/id/local-authority/32UC,AD Capital - Regulation,Professional and Contractors Fees,19/09/2023,30025700,"5,394.60 ",BRG Interim Solutions Ltd
East Lindsey District Council,http://statistics.data.gov.uk/id/local-authority/32UC,AD Capital - Regulation,Professional and Contractors Fees,19/09/2023,30025701,"5,421.60 ",BRG Interim Solutions Ltd
East Lindsey District Council,http://statistics.data.gov.uk/id/local-authority/32UC,AD Capital - Strategic Growth and Development,Grants and Contributions to Outside Bodies - No Service Received,19/09/2023,30025607,"54,984.96 ",Destination Lincolnshire
East Lindsey District Council,http://statistics.data.gov.uk/id/local-authority/32UC,AD Capital - Strategic Projects,Works to Buildings (Main Contractor),19/09/2023,30025767,"1,177,529.65 ",Alliance Leisure Services Limited
East Lindsey District Council,http://statistics.data.gov.uk/id/local-authority/32UC,AD Chief Finance Officer,Public Sector Partnership Services,19/09/2023,30025600,"481,597.58 ",Public Sector Partnership Services Ltd
East Lindsey District Council,http://statistics.data.gov.uk/id/local-authority/32UC,AD Economic Growth,Professional Fees,19/09/2023,30025009,711.79 ,Boston Borough Council
East Lindsey District Council,http://statistics.data.gov.uk/id/local-authority/32UC,AD Housing & Wellbeing,Grants and Contributions - Where a Service is Received,19/09/2023,30025840,"2,000.00 ",Stay Warm and Cosy
East Lindsey District Council,http://statistics.data.gov.uk/id/local-authority/32UC,Building Control,Professional and Contractors Fees,19/09/2023,30025540,"1,510.35 ",G2 Recruitment Solutions
East Lindsey District Council,http://statistics.data.gov.uk/id/local-authority/32UC,Building Control,Professional and Contractors Fees,19/09/2023,30025698,"2,055.60 ",BRG Interim Solutions Ltd
East Lindsey District Council,http://statistics.data.gov.uk/id/local-authority/32UC,Building Control,Professional and Contractors Fees,19/09/2023,30025700,"2,697.30 ",BRG Interim Solutions Ltd
East Lindsey District Council,http://statistics.data.gov.uk/id/local-authority/32UC,Building Control,Professional and Contractors Fees,19/09/2023,30025701,"2,710.80 ",BRG Interim Solutions Ltd
East Lindsey District Council,http://statistics.data.gov.uk/id/local-authority/32UC,Climate Change and Environment,Professional Fees,19/09/2023,30025766,"811,921.86 ",Everwarm Ltd
East Lindsey District Council,http://statistics.data.gov.uk/id/local-authority/32UC,Climate Change and Environment,Professional Fees,19/09/2023,30025768,"226,456.89 ",Everwarm Ltd
East Lindsey District Council,http://statistics.data.gov.uk/id/local-authority/32UC,Climate Change and Environment,Professional Fees,19/09/2023,30025769,"361,383.76 ",Everwarm Ltd
East Lindsey District Council,http://statistics.data.gov.uk/id/local-authority/32UC,Environmental Health,Professional and Contractors Fees,19/09/2023,30025554,"1,275.00 ",G2 Recruitment Solutions
East Lindsey District Council,http://statistics.data.gov.uk/id/local-authority/32UC,Growth Relationships & Growth Promotions,Performers and Entertainers Fees,19/09/2023,30025549,400.00 ,The SHENANIGANS
East Lindsey District Council,http://statistics.data.gov.uk/id/local-authority/32UC,Growth Relationships & Growth Promotions,Performers and Entertainers Fees,19/09/2023,30025936,450.00 ,Hire a Mermaid UK
East Lindsey District Council,http://statistics.data.gov.uk/id/local-authority/32UC,Invest East Lindsey,Works to Buildings (Main Contractor),19/09/2023,30025558,763.60 ,Huws Gray Buildbase
East Lindsey District Council,http://statistics.data.gov.uk/id/local-authority/32UC,Neighbourhoods,Agency Staff,19/09/2023,30025910,"6,835.62 ",The Workshop (Wisbech) Ltd
East Lindsey District Council,http://statistics.data.gov.uk/id/local-authority/32UC,Neighbourhoods,Furniture and Equipment,19/09/2023,30025789,820.77 ,Matrix Network Services Ltd
East Lindsey District Council,http://statistics.data.gov.uk/id/local-authority/32UC,Property,Agency Staff,19/09/2023,30025900,999.00 ,The Workshop (Wisbech) Ltd
East Lindsey District Council,http://statistics.data.gov.uk/id/local-authority/32UC,Property,Water and Sewerage Charges,19/09/2023,30025830,"3,961.78 ",Wave Anglian Water Business National Ltd
East Lindsey District Council,http://statistics.data.gov.uk/id/local-authority/32UC,Transformation Services Manager,Grants and Contributions - Where a Service is Received,19/09/2023,30025840,"2,000.00 ",Stay Warm and Cosy
East Lindsey District Council,http://statistics.data.gov.uk/id/local-authority/32UC,Waste,Agency Staff,19/09/2023,30025898,"3,966.40 ",Red Rock Partnership Ltd
East Lindsey District Council,http://statistics.data.gov.uk/id/local-authority/32UC,Waste,Workshop Parts,19/09/2023,30025292,450.00 ,Ford and Slater DAF (Lincoln Newark)
East Lindsey District Council,http://statistics.data.gov.uk/id/local-authority/32UC,Waste,Workshop Parts,19/09/2023,30025295,579.75 ,Terberg Matec UK
East Lindsey District Council,http://statistics.data.gov.uk/id/local-authority/32UC,Waste,Workshop Parts,19/09/2023,30025296,578.75 ,Terberg Matec UK
East Lindsey District Council,http://statistics.data.gov.uk/id/local-authority/32UC,Waste,Workshop Parts,19/09/2023,30025567,"8,870.43 ",Vaculug Technologies Ltd
East Lindsey District Council,http://statistics.data.gov.uk/id/local-authority/32UC,Waste,Workshop Parts,19/09/2023,30025904,400.00 ,Dennis Eagle Ltd
East Lindsey District Council,http://statistics.data.gov.uk/id/local-authority/32UC,Waste,Workshop Parts,19/09/2023,30025905,"2,316.10 ",Dennis Eagle Ltd
East Lindsey District Council,http://statistics.data.gov.uk/id/local-authority/32UC,Waste,Workshop Parts,19/09/2023,30025918,232.64 ,Partic Motor Spares Ltd
East Lindsey District Council,http://statistics.data.gov.uk/id/local-authority/32UC,AD Capital - Regulation,Materials and Consumables,21/09/2023,30025557,"1,168.39 ",VIP-System Ltd
East Lindsey District Council,http://statistics.data.gov.uk/id/local-authority/32UC,AD Chief Finance Officer,Employee Professional Subscriptions (Non-Payroll),21/09/2023,30025972,"1,059.62 ",Tuskerdirect Ltd
East Lindsey District Council,http://statistics.data.gov.uk/id/local-authority/32UC,AD Chief Finance Officer,Employee Professional Subscriptions (Non-Payroll),21/09/2023,30025973,"1,500.58 ",Tuskerdirect Ltd
East Lindsey District Council,http://statistics.data.gov.uk/id/local-authority/32UC,AD Chief Finance Officer,Employee Professional Subscriptions (Non-Payroll),21/09/2023,30025974,"1,500.58 ",Tuskerdirect Ltd
East Lindsey District Council,http://statistics.data.gov.uk/id/local-authority/32UC,AD Chief Finance Officer,Employee Professional Subscriptions (Non-Payroll),21/09/2023,30025975,"1,059.62 ",Tuskerdirect Ltd
East Lindsey District Council,http://statistics.data.gov.uk/id/local-authority/32UC,AD Chief Finance Officer,Employee Professional Subscriptions (Non-Payroll),21/09/2023,30025976,"1,500.58 ",Tuskerdirect Ltd
East Lindsey District Council,http://statistics.data.gov.uk/id/local-authority/32UC,AD Chief Finance Officer,Employee Professional Subscriptions (Non-Payroll),21/09/2023,30025977,"1,505.20 ",Tuskerdirect Ltd
East Lindsey District Council,http://statistics.data.gov.uk/id/local-authority/32UC,AD Chief Finance Officer,Employee Professional Subscriptions (Non-Payroll),21/09/2023,30025978,"1,059.62 ",Tuskerdirect Ltd
East Lindsey District Council,http://statistics.data.gov.uk/id/local-authority/32UC,AD Chief Finance Officer,Employee Professional Subscriptions (Non-Payroll),21/09/2023,30025979,"1,500.58 ",Tuskerdirect Ltd
East Lindsey District Council,http://statistics.data.gov.uk/id/local-authority/32UC,AD Chief Finance Officer,Employee Professional Subscriptions (Non-Payroll),21/09/2023,30025980,"1,505.20 ",Tuskerdirect Ltd
East Lindsey District Council,http://statistics.data.gov.uk/id/local-authority/32UC,AD Chief Finance Officer,Employee Professional Subscriptions (Non-Payroll),21/09/2023,30025984,"1,059.62 ",Tuskerdirect Ltd
East Lindsey District Council,http://statistics.data.gov.uk/id/local-authority/32UC,AD Chief Finance Officer,Parish Council Precepts,21/09/2023,30026042,"11,270.94 ",Grimoldby and Manby Parish Council
East Lindsey District Council,http://statistics.data.gov.uk/id/local-authority/32UC,AD Chief Finance Officer,Postages,21/09/2023,30025615,609.36 ,Royal Mail Group Ltd
East Lindsey District Council,http://statistics.data.gov.uk/id/local-authority/32UC,AD Chief Finance Officer,Postages,21/09/2023,30025619,790.00 ,Royal Mail Group Ltd
East Lindsey District Council,http://statistics.data.gov.uk/id/local-authority/32UC,AD Housing & Wellbeing,Bed and Breakfast Accommodation (Homelessness Service),21/09/2023,30026020,"1,360.00 ",Beeston Lodge Hotel
East Lindsey District Council,http://statistics.data.gov.uk/id/local-authority/32UC,AD Housing & Wellbeing,Grants and Contributions to Outside Bodies - No Service Received,21/09/2023,30025996,"5,000.00 ",Citizens Advice Lindsey
East Lindsey District Council,http://statistics.data.gov.uk/id/local-authority/32UC,AD Housing & Wellbeing,Grants and Contributions to Outside Bodies - No Service Received,21/09/2023,30026023,"13,276.64 ",J H Smithson and Son Ltd
East Lindsey District Council,http://statistics.data.gov.uk/id/local-authority/32UC,AD Housing & Wellbeing,Grants and Contributions to Outside Bodies - No Service Received,21/09/2023,30026024,"15,999.82 ",Denniss and Marwood Ltd
East Lindsey District Council,http://statistics.data.gov.uk/id/local-authority/32UC,Business Manager - Towns Fund,Professional and Contractors Fees,21/09/2023,30025986,"13,200.00 ",Garner Heritage Consultants Limited
East Lindsey District Council,http://statistics.data.gov.uk/id/local-authority/32UC,Enabling Activities Housing Development,Grants and Contributions to Outside Bodies - No Service Received,21/09/2023,30026023,"6,638.32 ",J H Smithson and Son Ltd
East Lindsey District Council,http://statistics.data.gov.uk/id/local-authority/32UC,Enabling Activities Housing Development,Grants and Contributions to Outside Bodies - No Service Received,21/09/2023,30026024,"7,999.91 ",Denniss and Marwood Ltd
East Lindsey District Council,http://statistics.data.gov.uk/id/local-authority/32UC,Environmental Health,Other Miscellaneous Expenses,21/09/2023,30025960,517.91 ,Rase Veterinary Equine
East Lindsey District Council,http://statistics.data.gov.uk/id/local-authority/32UC,Environmental Health,Professional and Contractors Fees,21/09/2023,30025336,"1,541.50 ",Sharon Redrobe Ltd
East Lindsey District Council,http://statistics.data.gov.uk/id/local-authority/32UC,Housing & Homelessness,Bed and Breakfast Accommodation (Homelessness Service),21/09/2023,30026020,"1,360.00 ",Beeston Lodge Hotel
East Lindsey District Council,http://statistics.data.gov.uk/id/local-authority/32UC,Housing & Homelessness,Grants and Contributions to Outside Bodies - No Service Received,21/09/2023,30025996,"5,000.00 ",Citizens Advice Lindsey
East Lindsey District Council,http://statistics.data.gov.uk/id/local-authority/32UC,Housing & Homelessness,Grants and Contributions to Outside Bodies - No Service Received,21/09/2023,30026023,"6,638.32 ",J H Smithson and Son Ltd
East Lindsey District Council,http://statistics.data.gov.uk/id/local-authority/32UC,Housing & Homelessness,Grants and Contributions to Outside Bodies - No Service Received,21/09/2023,30026024,"7,999.91 ",Denniss and Marwood Ltd
East Lindsey District Council,http://statistics.data.gov.uk/id/local-authority/32UC,Information Technology,Mobile Phones,21/09/2023,30025951,"3,422.79 ",Vodafone Ltd Corporate
East Lindsey District Council,http://statistics.data.gov.uk/id/local-authority/32UC,Information Technology,Mobile Phones,21/09/2023,30025952,468.25 ,Vodafone Ltd Corporate
East Lindsey District Council,http://statistics.data.gov.uk/id/local-authority/32UC,Information Technology,Mobile Phones,21/09/2023,30026013,"9,915.00 ",Public Sector Partnership Services Ltd
East Lindsey District Council,http://statistics.data.gov.uk/id/local-authority/32UC,"Performance, Governance & Commissioning",Grants and Contributions to Outside Bodies - No Service Received,21/09/2023,30025942,500.00 ,Sutton On Sea  Residents Association
East Lindsey District Council,http://statistics.data.gov.uk/id/local-authority/32UC,"Performance, Governance & Commissioning",Grants and Contributions to Outside Bodies - No Service Received,21/09/2023,30025943,"1,000.00 ",Lives
East Lindsey District Council,http://statistics.data.gov.uk/id/local-authority/32UC,"Performance, Governance & Commissioning",Grants and Contributions to Outside Bodies - No Service Received,21/09/2023,30025945,600.00 ,Mablethorpe Boatshed
East Lindsey District Council,http://statistics.data.gov.uk/id/local-authority/32UC,"Performance, Governance & Commissioning",Grants and Contributions to Outside Bodies - No Service Received,21/09/2023,30025946,450.00 ,2nd Tetney Girl Guides
East Lindsey District Council,http://statistics.data.gov.uk/id/local-authority/32UC,"Performance, Governance & Commissioning",Grants and Contributions to Outside Bodies - No Service Received,21/09/2023,30025948,350.00 ,Elkington Parish Council
East Lindsey District Council,http://statistics.data.gov.uk/id/local-authority/32UC,Property,Professional and Contractors Fees,21/09/2023,30026005,"4,950.00 ",Right Directions Ltd
East Lindsey District Council,http://statistics.data.gov.uk/id/local-authority/32UC,Waste,Professional and Contractors Fees,21/09/2023,30025998,"2,625.00 ",Logistics UK
East Lindsey District Council,http://statistics.data.gov.uk/id/local-authority/32UC,Waste,Workshop Parts,21/09/2023,30025344,241.45 ,Calibration & Consultancy Services (UK) Ltd
East Lindsey District Council,http://statistics.data.gov.uk/id/local-authority/32UC,Waste,Workshop Parts,21/09/2023,30026015,284.89 ,Partic Motor Spares Ltd
East Lindsey District Council,http://statistics.data.gov.uk/id/local-authority/32UC,AD Chief Finance Officer,Parish Council Precepts,25/09/2023,30026033,"94,961.00 ",Alford Town Council
East Lindsey District Council,http://statistics.data.gov.uk/id/local-authority/32UC,AD Chief Finance Officer,Parish Council Precepts,25/09/2023,30026034,"9,180.00 ",Binbrook Parish Council
East Lindsey District Council,http://statistics.data.gov.uk/id/local-authority/32UC,AD Chief Finance Officer,Parish Council Precepts,25/09/2023,30026035,"38,734.15 ",Burgh Le Marsh Town Council
East Lindsey District Council,http://statistics.data.gov.uk/id/local-authority/32UC,AD Chief Finance Officer,Parish Council Precepts,25/09/2023,30026036,"70,749.00 ",Chapel St Leonard Parish Council
East Lindsey District Council,http://statistics.data.gov.uk/id/local-authority/32UC,AD Chief Finance Officer,Parish Council Precepts,25/09/2023,30026037,"65,000.00 ",Coningsby Town Council
East Lindsey District Council,http://statistics.data.gov.uk/id/local-authority/32UC,AD Chief Finance Officer,Parish Council Precepts,25/09/2023,30026038,"6,131.00 ",Croft Parish Council
East Lindsey District Council,http://statistics.data.gov.uk/id/local-authority/32UC,AD Chief Finance Officer,Parish Council Precepts,25/09/2023,30026039,"5,800.00 ",East and West Barkwith Parish Council
East Lindsey District Council,http://statistics.data.gov.uk/id/local-authority/32UC,AD Chief Finance Officer,Parish Council Precepts,25/09/2023,30026040,"7,500.00 ",Eastville Midville NLeake Parish Council
East Lindsey District Council,http://statistics.data.gov.uk/id/local-authority/32UC,AD Chief Finance Officer,Parish Council Precepts,25/09/2023,30026041,"9,000.00 ",Friskney Parish Council
East Lindsey District Council,http://statistics.data.gov.uk/id/local-authority/32UC,AD Chief Finance Officer,Parish Council Precepts,25/09/2023,30026043,"5,761.50 ",Hogsthorpe Parish Council
East Lindsey District Council,http://statistics.data.gov.uk/id/local-authority/32UC,AD Chief Finance Officer,Parish Council Precepts,25/09/2023,30026044,"36,213.50 ",Holton Le Clay Parish Council
East Lindsey District Council,http://statistics.data.gov.uk/id/local-authority/32UC,AD Chief Finance Officer,Parish Council Precepts,25/09/2023,30026045,"120,976.00 ",Horncastle Town Council
East Lindsey District Council,http://statistics.data.gov.uk/id/local-authority/32UC,AD Chief Finance Officer,Parish Council Precepts,25/09/2023,30026046,"24,675.00 ",Ingoldmells Parish Council
East Lindsey District Council,http://statistics.data.gov.uk/id/local-authority/32UC,AD Chief Finance Officer,Parish Council Precepts,25/09/2023,30026048,"5,250.00 ",Langriville Parish Council
East Lindsey District Council,http://statistics.data.gov.uk/id/local-authority/32UC,AD Chief Finance Officer,Parish Council Precepts,25/09/2023,30026049,"150,041.00 ",Louth Town Council
East Lindsey District Council,http://statistics.data.gov.uk/id/local-authority/32UC,AD Chief Finance Officer,Parish Council Precepts,25/09/2023,30026050,"320,731.50 ",Mablethorpe and Sutton Town Council
East Lindsey District Council,http://statistics.data.gov.uk/id/local-authority/32UC,AD Chief Finance Officer,Parish Council Precepts,25/09/2023,30026051,"6,160.00 ",Mareham Le Fen Parish Council
East Lindsey District Council,http://statistics.data.gov.uk/id/local-authority/32UC,AD Chief Finance Officer,Parish Council Precepts,25/09/2023,30026052,"6,124.00 ",Marshchapel Parish Council
East Lindsey District Council,http://statistics.data.gov.uk/id/local-authority/32UC,AD Chief Finance Officer,Parish Council Precepts,25/09/2023,30026053,"20,898.00 ",North Somercotes Parish Council
East Lindsey District Council,http://statistics.data.gov.uk/id/local-authority/32UC,AD Chief Finance Officer,Parish Council Precepts,25/09/2023,30026054,"19,000.00 ","North Thoresby, Grainsby and Waithe  Parish Council"
East Lindsey District Council,http://statistics.data.gov.uk/id/local-authority/32UC,AD Chief Finance Officer,Parish Council Precepts,25/09/2023,30026055,"36,100.00 ",Sibsey Parish Council
East Lindsey District Council,http://statistics.data.gov.uk/id/local-authority/32UC,AD Chief Finance Officer,Parish Council Precepts,25/09/2023,30026056,"308,687.50 ",Skegness Town Council
East Lindsey District Council,http://statistics.data.gov.uk/id/local-authority/32UC,AD Chief Finance Officer,Parish Council Precepts,25/09/2023,30026057,"70,312.50 ",Spilsby Town Council
East Lindsey District Council,http://statistics.data.gov.uk/id/local-authority/32UC,AD Chief Finance Officer,Parish Council Precepts,25/09/2023,30026058,"11,500.00 ",Stickney Parish Council
East Lindsey District Council,http://statistics.data.gov.uk/id/local-authority/32UC,AD Chief Finance Officer,Parish Council Precepts,25/09/2023,30026059,"12,900.00 ",Tattershall With Thorpe Parish Council
East Lindsey District Council,http://statistics.data.gov.uk/id/local-authority/32UC,AD Chief Finance Officer,Parish Council Precepts,25/09/2023,30026060,"11,000.00 ",Tetney Parish Council
East Lindsey District Council,http://statistics.data.gov.uk/id/local-authority/32UC,AD Chief Finance Officer,Parish Council Precepts,25/09/2023,30026061,"20,716.50 ",Wainfleet All Saints Town Council
East Lindsey District Council,http://statistics.data.gov.uk/id/local-authority/32UC,AD Chief Finance Officer,Parish Council Precepts,25/09/2023,30026062,"41,457.50 ",Woodhall Spa Parish Council
East Lindsey District Council,http://statistics.data.gov.uk/id/local-authority/32UC,AD Chief Finance Officer,Parish Council Precepts,25/09/2023,30026063,"13,050.00 ",Wragby Parish Council
East Lindsey District Council,http://statistics.data.gov.uk/id/local-authority/32UC,AD Chief Finance Officer,Parish Council Precepts,25/09/2023,30026070,"5,712.00 ",Old Bolingbroke with Hareby Parish Cnl
East Lindsey District Council,http://statistics.data.gov.uk/id/local-authority/32UC,AD Chief Finance Officer,Parish Council Precepts,25/09/2023,30026075,"11,270.93 ",Grimoldby and Manby Parish Council
East Lindsey District Council,http://statistics.data.gov.uk/id/local-authority/32UC,AD Capital - Regulation,Buildings Maintenance - Responsive,26/09/2023,30025777,"1,385.92 ",Gelder Ltd
East Lindsey District Council,http://statistics.data.gov.uk/id/local-authority/32UC,AD Capital - Regulation,Professional and Contractors Fees,26/09/2023,30025546,"3,082.50 ",G2 Recruitment Solutions
East Lindsey District Council,http://statistics.data.gov.uk/id/local-authority/32UC,AD Capital - Strategic Growth and Development,Grants and Contributions to Outside Bodies - No Service Received,26/09/2023,30025620,"2,190.00 ",Parochial Church Council of Old Bollingbroke Parish
East Lindsey District Council,http://statistics.data.gov.uk/id/local-authority/32UC,AD Capital - Strategic Projects,Professional Fees,26/09/2023,30025655,"10,686.00 ",WSP UK Ltd
East Lindsey District Council,http://statistics.data.gov.uk/id/local-authority/32UC,AD Chief Finance Officer,Banking Charges,26/09/2023,30026245,"14,973.66 ",PAY360 Ltf
East Lindsey District Council,http://statistics.data.gov.uk/id/local-authority/32UC,AD Chief Finance Officer,Employee Professional Subscriptions (Non-Payroll),26/09/2023,30025981,"1,059.62 ",Tuskerdirect Ltd
East Lindsey District Council,http://statistics.data.gov.uk/id/local-authority/32UC,AD Chief Finance Officer,Employee Professional Subscriptions (Non-Payroll),26/09/2023,30025982,"1,500.58 ",Tuskerdirect Ltd
East Lindsey District Council,http://statistics.data.gov.uk/id/local-authority/32UC,AD Chief Finance Officer,Employee Professional Subscriptions (Non-Payroll),26/09/2023,30025983,"1,505.20 ",Tuskerdirect Ltd
East Lindsey District Council,http://statistics.data.gov.uk/id/local-authority/32UC,AD Chief Finance Officer,Lincolnshire Legal Services,26/09/2023,30025835,"21,437.12 ",Lincolnshire County Council
East Lindsey District Council,http://statistics.data.gov.uk/id/local-authority/32UC,AD Chief Finance Officer,Vehicle Hire,26/09/2023,30025457,544.36 ,Tjs Self Drive
East Lindsey District Council,http://statistics.data.gov.uk/id/local-authority/32UC,AD Economic Growth,Professional Fees,26/09/2023,30025815,310.10 ,WSP UK Ltd
East Lindsey District Council,http://statistics.data.gov.uk/id/local-authority/32UC,AD Housing & Wellbeing,Bed and Breakfast Accommodation (Homelessness Service),26/09/2023,30026022,"1,520.00 ",Beeston Lodge Hotel
East Lindsey District Council,http://statistics.data.gov.uk/id/local-authority/32UC,AD Housing & Wellbeing,Furniture and Equipment,26/09/2023,30025531,"1,352.84 ",Alertcom Limited
East Lindsey District Council,http://statistics.data.gov.uk/id/local-authority/32UC,AD Housing & Wellbeing,Furniture and Equipment,26/09/2023,30026068,"2,487.00 ",Woodlandz Furnishings GY Ltd
East Lindsey District Council,http://statistics.data.gov.uk/id/local-authority/32UC,AD Housing & Wellbeing,Furniture and Equipment,26/09/2023,30026073,309.99 ,Faulkners
East Lindsey District Council,http://statistics.data.gov.uk/id/local-authority/32UC,AD Housing & Wellbeing,Furniture and Equipment,26/09/2023,30026113,650.00 ,Woodlandz Furnishings GY Ltd
East Lindsey District Council,http://statistics.data.gov.uk/id/local-authority/32UC,AD Housing & Wellbeing,Furniture and Equipment,26/09/2023,30026129,225.00 ,Waste Away Clearance Service
East Lindsey District Council,http://statistics.data.gov.uk/id/local-authority/32UC,AD Housing & Wellbeing,Grants and Contributions - Where a Service is Received,26/09/2023,30026017,450.00 ,"North Thoresby, Grainsby and Waithe  Parish Council"
East Lindsey District Council,http://statistics.data.gov.uk/id/local-authority/32UC,AD Housing & Wellbeing,Grants and Contributions - Where a Service is Received,26/09/2023,30026133,"1,511.00 ",Skendleby Social Club
East Lindsey District Council,http://statistics.data.gov.uk/id/local-authority/32UC,AD Housing & Wellbeing,Grants and Contributions to Outside Bodies - No Service Received,26/09/2023,30025950,"2,000.00 ",Wragby Chef
East Lindsey District Council,http://statistics.data.gov.uk/id/local-authority/32UC,AD Housing & Wellbeing,Grants and Contributions to Outside Bodies - No Service Received,26/09/2023,30026065,"21,961.68 ",R A Joinery
East Lindsey District Council,http://statistics.data.gov.uk/id/local-authority/32UC,AD Housing & Wellbeing,Other Miscellaneous Expenses,26/09/2023,30026047,250.00 ,Waste Away Clearance Service
East Lindsey District Council,http://statistics.data.gov.uk/id/local-authority/32UC,AD Housing & Wellbeing,Other Miscellaneous Expenses,26/09/2023,30026072,300.00 ,Class Cleaning of Louth
East Lindsey District Council,http://statistics.data.gov.uk/id/local-authority/32UC,AD Housing & Wellbeing,Other Miscellaneous Expenses,26/09/2023,30026114,250.00 ,Waste Away Clearance Service
East Lindsey District Council,http://statistics.data.gov.uk/id/local-authority/32UC,AD Leisure & Culture,Buildings Maintenance - Programmed,26/09/2023,30025651,308.75 ,Dalesauna Ltd
East Lindsey District Council,http://statistics.data.gov.uk/id/local-authority/32UC,AD Leisure & Culture,Buildings Maintenance - Responsive,26/09/2023,30025641,216.00 ,Airco Refrigeration Air Conditioning Ltd
East Lindsey District Council,http://statistics.data.gov.uk/id/local-authority/32UC,AD Leisure & Culture,Buildings Maintenance - Responsive,26/09/2023,30025777,"5,739.24 ",Gelder Ltd
East Lindsey District Council,http://statistics.data.gov.uk/id/local-authority/32UC,Building Control,Buildings Maintenance - Responsive,26/09/2023,30025777,692.96 ,Gelder Ltd
East Lindsey District Council,http://statistics.data.gov.uk/id/local-authority/32UC,Building Control,Professional and Contractors Fees,26/09/2023,30025546,"1,541.25 ",G2 Recruitment Solutions
East Lindsey District Council,http://statistics.data.gov.uk/id/local-authority/32UC,Business Manager - Towns Fund,Professional and Contractors Fees,26/09/2023,30026137,825.00 ,The Engaging People Company
East Lindsey District Council,http://statistics.data.gov.uk/id/local-authority/32UC,Business Manager - Towns Fund,Professional and Contractors Fees,26/09/2023,30026138,362.50 ,Forceshift Contracting Ltd
East Lindsey District Council,http://statistics.data.gov.uk/id/local-authority/32UC,Development Control,Advertising - Legal And Public,26/09/2023,30025532,615.11 ,Reach Plc Publishing Ltd
East Lindsey District Council,http://statistics.data.gov.uk/id/local-authority/32UC,Development Control,Professional and Contractors Fees,26/09/2023,30025702,"3,980.00 ",Nexus Planning
East Lindsey District Council,http://statistics.data.gov.uk/id/local-authority/32UC,Economic Growth Service Manager (Place),Other Miscellaneous Expenses,26/09/2023,30025541,"1,246.00 ",Reach Plc Publishing Ltd
East Lindsey District Council,http://statistics.data.gov.uk/id/local-authority/32UC,Economic Growth Service Manager (Place),Other Miscellaneous Expenses,26/09/2023,30025933,471.50 ,Lincolnshire County Council
East Lindsey District Council,http://statistics.data.gov.uk/id/local-authority/32UC,Enabling Activities Housing Development,Grants and Contributions to Outside Bodies - No Service Received,26/09/2023,30026065,"10,980.84 ",R A Joinery
East Lindsey District Council,http://statistics.data.gov.uk/id/local-authority/32UC,Environmental Health,Other agencies,26/09/2023,30025899,"7,965.00 ",Kingdom Local Authority Support
East Lindsey District Council,http://statistics.data.gov.uk/id/local-authority/32UC,Environmental Health,Professional and Contractors Fees,26/09/2023,30025555,"1,312.50 ",G2 Recruitment Solutions
East Lindsey District Council,http://statistics.data.gov.uk/id/local-authority/32UC,Environmental Health,Professional and Contractors Fees,26/09/2023,30025582,455.00 ,JD Johnson Ltd
East Lindsey District Council,http://statistics.data.gov.uk/id/local-authority/32UC,Growth Relationships & Growth Promotions,Other Miscellaneous Expenses,26/09/2023,30025541,"1,246.00 ",Reach Plc Publishing Ltd
East Lindsey District Council,http://statistics.data.gov.uk/id/local-authority/32UC,Growth Relationships & Growth Promotions,Other Miscellaneous Expenses,26/09/2023,30025933,471.50 ,Lincolnshire County Council
East Lindsey District Council,http://statistics.data.gov.uk/id/local-authority/32UC,Healthy Living Services Manager,Grants and Contributions to Outside Bodies - No Service Received,26/09/2023,30025950,"2,000.00 ",Wragby Chef
East Lindsey District Council,http://statistics.data.gov.uk/id/local-authority/32UC,Housing & Homelessness,Bed and Breakfast Accommodation (Homelessness Service),26/09/2023,30026022,"1,520.00 ",Beeston Lodge Hotel
East Lindsey District Council,http://statistics.data.gov.uk/id/local-authority/32UC,Housing & Homelessness,Furniture and Equipment,26/09/2023,30026068,"2,487.00 ",Woodlandz Furnishings GY Ltd
East Lindsey District Council,http://statistics.data.gov.uk/id/local-authority/32UC,Housing & Homelessness,Furniture and Equipment,26/09/2023,30026073,309.99 ,Faulkners
East Lindsey District Council,http://statistics.data.gov.uk/id/local-authority/32UC,Housing & Homelessness,Furniture and Equipment,26/09/2023,30026113,650.00 ,Woodlandz Furnishings GY Ltd
East Lindsey District Council,http://statistics.data.gov.uk/id/local-authority/32UC,Housing & Homelessness,Furniture and Equipment,26/09/2023,30026129,225.00 ,Waste Away Clearance Service
East Lindsey District Council,http://statistics.data.gov.uk/id/local-authority/32UC,Housing & Homelessness,Grants and Contributions to Outside Bodies - No Service Received,26/09/2023,30026065,"10,980.84 ",R A Joinery
East Lindsey District Council,http://statistics.data.gov.uk/id/local-authority/32UC,Housing & Homelessness,Other Miscellaneous Expenses,26/09/2023,30026047,250.00 ,Waste Away Clearance Service
East Lindsey District Council,http://statistics.data.gov.uk/id/local-authority/32UC,Housing & Homelessness,Other Miscellaneous Expenses,26/09/2023,30026072,300.00 ,Class Cleaning of Louth
East Lindsey District Council,http://statistics.data.gov.uk/id/local-authority/32UC,Housing & Homelessness,Other Miscellaneous Expenses,26/09/2023,30026114,250.00 ,Waste Away Clearance Service
East Lindsey District Council,http://statistics.data.gov.uk/id/local-authority/32UC,Information Technology,Internet Broadband Payments,26/09/2023,30025479,119.85 ,Multidata
East Lindsey District Council,http://statistics.data.gov.uk/id/local-authority/32UC,Invest East Lindsey,"Purchase of Plant, Machinery and Equipment",26/09/2023,30025529,324.34 ,Senator Group
East Lindsey District Council,http://statistics.data.gov.uk/id/local-authority/32UC,Neighbourhoods,Agency Staff,26/09/2023,30026092,"5,758.83 ",The Workshop (Wisbech) Ltd
East Lindsey District Council,http://statistics.data.gov.uk/id/local-authority/32UC,Neighbourhoods,Buildings Maintenance - Responsive,26/09/2023,30025777,"37,472.61 ",Gelder Ltd
East Lindsey District Council,http://statistics.data.gov.uk/id/local-authority/32UC,Neighbourhoods,Grounds Maintenance Contract (External),26/09/2023,30025644,"12,105.09 ",Glendale Grounds Management Limited
East Lindsey District Council,http://statistics.data.gov.uk/id/local-authority/32UC,Neighbourhoods,Materials and Consumables,26/09/2023,30025886,"2,826.00 ",Eastern Shires Purchasing Organisation
East Lindsey District Council,http://statistics.data.gov.uk/id/local-authority/32UC,Neighbourhoods,Materials and Consumables,26/09/2023,30025888,471.90 ,Eastern Shires Purchasing Organisation
East Lindsey District Council,http://statistics.data.gov.uk/id/local-authority/32UC,Neighbourhoods,Materials and Consumables,26/09/2023,30026141,605.80 ,Eastern Shires Purchasing Organisation
East Lindsey District Council,http://statistics.data.gov.uk/id/local-authority/32UC,Neighbourhoods,Materials and Consumables,26/09/2023,30026143,787.44 ,Eastern Shires Purchasing Organisation
East Lindsey District Council,http://statistics.data.gov.uk/id/local-authority/32UC,Neighbourhoods,Materials and Consumables,26/09/2023,30026145,622.70 ,Eastern Shires Purchasing Organisation
East Lindsey District Council,http://statistics.data.gov.uk/id/local-authority/32UC,Neighbourhoods,Materials and Consumables,26/09/2023,30026151,229.00 ,Eastern Shires Purchasing Organisation
East Lindsey District Council,http://statistics.data.gov.uk/id/local-authority/32UC,Neighbourhoods,Materials and Consumables,26/09/2023,30026153,350.00 ,Eastern Shires Purchasing Organisation
East Lindsey District Council,http://statistics.data.gov.uk/id/local-authority/32UC,Neighbourhoods,Other Private Contractors,26/09/2023,30026157,"52,271.22 ",Danfo UK Ltd
East Lindsey District Council,http://statistics.data.gov.uk/id/local-authority/32UC,Neighbourhoods,Professional and Contractors Fees,26/09/2023,30025439,"5,000.00 ",Working Time Solutions Ltd
East Lindsey District Council,http://statistics.data.gov.uk/id/local-authority/32UC,Neighbourhoods,Professional and Contractors Fees,26/09/2023,30025563,251.20 ,Greenaway
East Lindsey District Council,http://statistics.data.gov.uk/id/local-authority/32UC,Neighbourhoods,Water and Sewerage Charges,26/09/2023,30025823,295.58 ,Wave Anglian Water Business National Ltd
East Lindsey District Council,http://statistics.data.gov.uk/id/local-authority/32UC,Neighbourhoods,Water and Sewerage Charges,26/09/2023,30025844,419.82 ,Wave Anglian Water Business National Ltd
East Lindsey District Council,http://statistics.data.gov.uk/id/local-authority/32UC,"Performance, Governance & Commissioning",Agency Staff,26/09/2023,30026064,"3,200.00 ",Hays Specialist Recruitment Limited
East Lindsey District Council,http://statistics.data.gov.uk/id/local-authority/32UC,"Performance, Governance & Commissioning",External Printing and Design Costs,26/09/2023,30026160,591.58 ,Civica Election Services
East Lindsey District Council,http://statistics.data.gov.uk/id/local-authority/32UC,"Performance, Governance & Commissioning",Postages,26/09/2023,30026160,"1,269.01 ",Civica Election Services
East Lindsey District Council,http://statistics.data.gov.uk/id/local-authority/32UC,"Performance, Governance & Commissioning",Professional and Contractors Fees,26/09/2023,30025403,"2,100.00 ",Serjeants Inn
East Lindsey District Council,http://statistics.data.gov.uk/id/local-authority/32UC,Property,Buildings Maintenance - Programmed,26/09/2023,30025781,"6,180.00 ",Teen Spirit Ltd
East Lindsey District Council,http://statistics.data.gov.uk/id/local-authority/32UC,Property,Buildings Maintenance - Programmed,26/09/2023,30026028,"7,286.74 ",Second Element Limited
East Lindsey District Council,http://statistics.data.gov.uk/id/local-authority/32UC,Property,Buildings Maintenance - Responsive,26/09/2023,30025647,689.10 ,Lincoln Security Ltd
East Lindsey District Council,http://statistics.data.gov.uk/id/local-authority/32UC,Property,Buildings Maintenance - Responsive,26/09/2023,30025777,"38,206.11 ",Gelder Ltd
East Lindsey District Council,http://statistics.data.gov.uk/id/local-authority/32UC,Property,Cleaning Contract,26/09/2023,30025511,"1,168.00 ",Easy Clean Marshchapel Ltd
East Lindsey District Council,http://statistics.data.gov.uk/id/local-authority/32UC,Property,Cleaning Contract,26/09/2023,30025517,959.00 ,Easy Clean Marshchapel Ltd
East Lindsey District Council,http://statistics.data.gov.uk/id/local-authority/32UC,Property,Electricity,26/09/2023,30026074,259.10 ,EDF Energy
East Lindsey District Council,http://statistics.data.gov.uk/id/local-authority/32UC,Property,Grounds Maintenance Contract (External),26/09/2023,30025644,"12,105.09 ",Glendale Grounds Management Limited
East Lindsey District Council,http://statistics.data.gov.uk/id/local-authority/32UC,Property,Internet Broadband Payments,26/09/2023,30025479,"1,213.98 ",Multidata
East Lindsey District Council,http://statistics.data.gov.uk/id/local-authority/32UC,Property,Other Private Contractors,26/09/2023,30026157,"52,271.22 ",Danfo UK Ltd
East Lindsey District Council,http://statistics.data.gov.uk/id/local-authority/32UC,Property,Professional and Contractors Fees,26/09/2023,30025652,679.66 ,Chipside Ltd
East Lindsey District Council,http://statistics.data.gov.uk/id/local-authority/32UC,Property,Professional and Contractors Fees,26/09/2023,30026081,900.00 ,Freeths LLP
East Lindsey District Council,http://statistics.data.gov.uk/id/local-authority/32UC,Property,Professional and Contractors Fees,26/09/2023,30026139,"3,418.02 ",Kings Armoured Security Services Ltd
East Lindsey District Council,http://statistics.data.gov.uk/id/local-authority/32UC,Property,Telephones,26/09/2023,30025479,50.34 ,Multidata
East Lindsey District Council,http://statistics.data.gov.uk/id/local-authority/32UC,Property,Water and Sewerage Charges,26/09/2023,30025823,295.58 ,Wave Anglian Water Business National Ltd
East Lindsey District Council,http://statistics.data.gov.uk/id/local-authority/32UC,Property,Water and Sewerage Charges,26/09/2023,30025834,352.66 ,Wave Anglian Water Business National Ltd
East Lindsey District Council,http://statistics.data.gov.uk/id/local-authority/32UC,Property,Water and Sewerage Charges,26/09/2023,30025844,419.82 ,Wave Anglian Water Business National Ltd
East Lindsey District Council,http://statistics.data.gov.uk/id/local-authority/32UC,Public Protection,Other Miscellaneous Expenses,26/09/2023,30025829,300.00 ,BT Redcare
East Lindsey District Council,http://statistics.data.gov.uk/id/local-authority/32UC,Public Protection,Other Miscellaneous Expenses,26/09/2023,30026115,"4,320.00 ",Videcom Security Limited
East Lindsey District Council,http://statistics.data.gov.uk/id/local-authority/32UC,Public Protection,Professional and Contractors Fees,26/09/2023,30025479,119.85 ,Multidata
East Lindsey District Council,http://statistics.data.gov.uk/id/local-authority/32UC,Transformation Services Manager,Grants and Contributions - Where a Service is Received,26/09/2023,30026017,450.00 ,"North Thoresby, Grainsby and Waithe  Parish Council"
East Lindsey District Council,http://statistics.data.gov.uk/id/local-authority/32UC,Transformation Services Manager,Grants and Contributions - Where a Service is Received,26/09/2023,30026133,"1,511.00 ",Skendleby Social Club
East Lindsey District Council,http://statistics.data.gov.uk/id/local-authority/32UC,Waste,Agency Staff,26/09/2023,30026001,"6,004.24 ",Red Rock Partnership Ltd
East Lindsey District Council,http://statistics.data.gov.uk/id/local-authority/32UC,Waste,Agency Staff,26/09/2023,30026099,"5,583.65 ",Red Rock Partnership Ltd
East Lindsey District Council,http://statistics.data.gov.uk/id/local-authority/32UC,Waste,Computer Hardware Maintenance,26/09/2023,30025479,119.85 ,Multidata
East Lindsey District Council,http://statistics.data.gov.uk/id/local-authority/32UC,Waste,Fuel and Oil,26/09/2023,30025452,"4,814.40 ",Allstar Business Solutions Ltd
East Lindsey District Council,http://statistics.data.gov.uk/id/local-authority/32UC,Waste,Fuel and Oil,26/09/2023,30025459,"24,554.00 ",Rix Petroleum
East Lindsey District Council,http://statistics.data.gov.uk/id/local-authority/32UC,Waste,Internet Broadband Payments,26/09/2023,30025479,81.99 ,Multidata
East Lindsey District Council,http://statistics.data.gov.uk/id/local-authority/32UC,Waste,Other Private Contractors,26/09/2023,30025486,331.06 ,Glass Recycling UK Ltd
East Lindsey District Council,http://statistics.data.gov.uk/id/local-authority/32UC,Waste,Telephones,26/09/2023,30025479,50.34 ,Multidata
East Lindsey District Council,http://statistics.data.gov.uk/id/local-authority/32UC,Waste,Vehicle Hire,26/09/2023,30025598,"4,140.00 ",Excel Trucks Ltd
East Lindsey District Council,http://statistics.data.gov.uk/id/local-authority/32UC,Waste,Workshop Parts,26/09/2023,30025525,258.05 ,Dennis Eagle Ltd
East Lindsey District Council,http://statistics.data.gov.uk/id/local-authority/32UC,Waste,Workshop Parts,26/09/2023,30025526,349.68 ,Dennis Eagle Ltd
East Lindsey District Council,http://statistics.data.gov.uk/id/local-authority/32UC,Waste,Workshop Parts,26/09/2023,30025527,283.79 ,Dennis Eagle Ltd
East Lindsey District Council,http://statistics.data.gov.uk/id/local-authority/32UC,Waste,Workshop Parts,26/09/2023,30025533,331.64 ,Waste Parts UK Ltd
East Lindsey District Council,http://statistics.data.gov.uk/id/local-authority/32UC,Waste,Workshop Parts,26/09/2023,30025622,603.98 ,Partic Motor Spares Ltd
East Lindsey District Council,http://statistics.data.gov.uk/id/local-authority/32UC,Waste,Workshop Parts,26/09/2023,30025730,400.00 ,Euro Municipal Ltd
East Lindsey District Council,http://statistics.data.gov.uk/id/local-authority/32UC,Waste,Workshop Parts,26/09/2023,30026086,243.76 ,M E Autoparts Limited
East Lindsey District Council,http://statistics.data.gov.uk/id/local-authority/32UC,Wellbeing Services Manager,Furniture and Equipment,26/09/2023,30025531,"1,352.84 ",Alertcom Limited
East Lindsey District Council,http://statistics.data.gov.uk/id/local-authority/32UC,AD Capital - Strategic Growth and Development,Grants and Contributions to Outside Bodies - No Service Received,28/09/2023,30026198,"7,260.00 ",PH Mountain Corrugated Ltd
East Lindsey District Council,http://statistics.data.gov.uk/id/local-authority/32UC,AD Housing & Wellbeing,Bed and Breakfast Accommodation (Homelessness Service),28/09/2023,30026261,410.00 ,Baxter House
East Lindsey District Council,http://statistics.data.gov.uk/id/local-authority/32UC,AD Housing & Wellbeing,Grants and Contributions to Outside Bodies - No Service Received,28/09/2023,30026130,"2,371.16 ",Denniss and Marwood Ltd
East Lindsey District Council,http://statistics.data.gov.uk/id/local-authority/32UC,AD Housing & Wellbeing,Grants and Contributions to Outside Bodies - No Service Received,28/09/2023,30026201,253.48 ,�Personal Information Redacted�
East Lindsey District Council,http://statistics.data.gov.uk/id/local-authority/32UC,AD Housing & Wellbeing,Other Miscellaneous Expenses,28/09/2023,30025934,281.00 ,Lincolnshire County Council
East Lindsey District Council,http://statistics.data.gov.uk/id/local-authority/32UC,AD Leisure & Culture,Buildings Maintenance - Responsive,28/09/2023,30026170,750.00 ,Pest Lincs Ltd
East Lindsey District Council,http://statistics.data.gov.uk/id/local-authority/32UC,AD Organisational & Corporate Services,Purchase of Hardware,28/09/2023,30025560,"6,019.08 ",Tangible Benefit
East Lindsey District Council,http://statistics.data.gov.uk/id/local-authority/32UC,Climate Change and Environment,Professional Fees,28/09/2023,30025601,"10,282.04 ",Osborne Energy Limited
East Lindsey District Council,http://statistics.data.gov.uk/id/local-authority/32UC,Climate Change and Environment,Professional Fees,28/09/2023,30025602,"61,852.42 ",Osborne Energy Limited
East Lindsey District Council,http://statistics.data.gov.uk/id/local-authority/32UC,Development Control,Professional and Contractors Fees,28/09/2023,30025581,"2,000.00 ",DPA Planning Ltd
East Lindsey District Council,http://statistics.data.gov.uk/id/local-authority/32UC,Economic Growth Service Manager (Place),Performers and Entertainers Fees,28/09/2023,30025995,"3,334.56 ",Carl Drury Limited
East Lindsey District Council,http://statistics.data.gov.uk/id/local-authority/32UC,Economic Growth Service Manager (Place),Professional and Contractors Fees,28/09/2023,30026212,"5,000.00 ",The Sessions House CIC
East Lindsey District Council,http://statistics.data.gov.uk/id/local-authority/32UC,Enabling Activities Housing Development,Grants and Contributions to Outside Bodies - No Service Received,28/09/2023,30026130,"1,185.58 ",Denniss and Marwood Ltd
East Lindsey District Council,http://statistics.data.gov.uk/id/local-authority/32UC,Environmental Health,Subscriptions to Organisations and Other Bodies,28/09/2023,30026194,360.00 ,Association of Drainage Authorities
East Lindsey District Council,http://statistics.data.gov.uk/id/local-authority/32UC,Growth Relationships & Growth Promotions,Performers and Entertainers Fees,28/09/2023,30025995,"3,334.56 ",Carl Drury Limited
East Lindsey District Council,http://statistics.data.gov.uk/id/local-authority/32UC,Growth Relationships & Growth Promotions,Professional and Contractors Fees,28/09/2023,30026212,"5,000.00 ",The Sessions House CIC
East Lindsey District Council,http://statistics.data.gov.uk/id/local-authority/32UC,Housing & Homelessness,Bed and Breakfast Accommodation (Homelessness Service),28/09/2023,30026261,410.00 ,Baxter House
East Lindsey District Council,http://statistics.data.gov.uk/id/local-authority/32UC,Housing & Homelessness,Grants and Contributions to Outside Bodies - No Service Received,28/09/2023,30026130,"1,185.58 ",Denniss and Marwood Ltd
East Lindsey District Council,http://statistics.data.gov.uk/id/local-authority/32UC,Housing & Homelessness,Grants and Contributions to Outside Bodies - No Service Received,28/09/2023,30026201,253.48 ,�Personal Information Redacted�
East Lindsey District Council,http://statistics.data.gov.uk/id/local-authority/32UC,Housing & Homelessness,Other Miscellaneous Expenses,28/09/2023,30025934,281.00 ,Lincolnshire County Council
East Lindsey District Council,http://statistics.data.gov.uk/id/local-authority/32UC,Information Technology,Purchase of Hardware,28/09/2023,30025560,"6,019.08 ",Tangible Benefit
East Lindsey District Council,http://statistics.data.gov.uk/id/local-authority/32UC,Neighbourhoods,Agency Staff,28/09/2023,30026216,411.99 ,The Workshop (Wisbech) Ltd
East Lindsey District Council,http://statistics.data.gov.uk/id/local-authority/32UC,Neighbourhoods,Buildings Maintenance - Programmed,28/09/2023,30026178,"1,357.00 ",Booths Stonemasonry and Masonry Cons
East Lindsey District Council,http://statistics.data.gov.uk/id/local-authority/32UC,Neighbourhoods,Buildings Maintenance - Responsive,28/09/2023,30025648,480.00 ,Brenntag UK Limited
East Lindsey District Council,http://statistics.data.gov.uk/id/local-authority/32UC,Neighbourhoods,Buildings Maintenance - Responsive,28/09/2023,30025649,519.16 ,Brenntag UK Limited
East Lindsey District Council,http://statistics.data.gov.uk/id/local-authority/32UC,Neighbourhoods,Buildings Maintenance - Responsive,28/09/2023,30025653,392.92 ,Brenntag UK Limited
East Lindsey District Council,http://statistics.data.gov.uk/id/local-authority/32UC,Neighbourhoods,Business Rates,28/09/2023,30025612,323.60 ,Brenntag UK Limited
East Lindsey District Council,http://statistics.data.gov.uk/id/local-authority/32UC,Neighbourhoods,Professional and Contractors Fees,28/09/2023,30026158,479.37 ,Phs Group
East Lindsey District Council,http://statistics.data.gov.uk/id/local-authority/32UC,Organisation Improvement & Development,Professional and Contractors Fees,28/09/2023,30026214,"2,850.00 ",Lyon Local Gov Ltd
East Lindsey District Council,http://statistics.data.gov.uk/id/local-authority/32UC,Property,Agency Staff,28/09/2023,30026195,"1,032.30 ",The Workshop (Wisbech) Ltd
East Lindsey District Council,http://statistics.data.gov.uk/id/local-authority/32UC,Property,Buildings Maintenance - Programmed,28/09/2023,30026177,"4,600.00 ",Booths Stonemasonry and Masonry Cons
East Lindsey District Council,http://statistics.data.gov.uk/id/local-authority/32UC,Property,Buildings Maintenance - Programmed,28/09/2023,30026178,"1,357.00 ",Booths Stonemasonry and Masonry Cons
East Lindsey District Council,http://statistics.data.gov.uk/id/local-authority/32UC,Property,Buildings Maintenance - Responsive,28/09/2023,30025648,480.00 ,Brenntag UK Limited
East Lindsey District Council,http://statistics.data.gov.uk/id/local-authority/32UC,Property,Buildings Maintenance - Responsive,28/09/2023,30025649,519.16 ,Brenntag UK Limited
East Lindsey District Council,http://statistics.data.gov.uk/id/local-authority/32UC,Property,Buildings Maintenance - Responsive,28/09/2023,30025653,392.92 ,Brenntag UK Limited
East Lindsey District Council,http://statistics.data.gov.uk/id/local-authority/32UC,Property,Business Rates,28/09/2023,30025612,323.60 ,Brenntag UK Limited
East Lindsey District Council,http://statistics.data.gov.uk/id/local-authority/32UC,Property,Cleaning Contract,28/09/2023,30026213,"1,701.00 ",Winters & Wooster Site Services Ltd
East Lindsey District Council,http://statistics.data.gov.uk/id/local-authority/32UC,Property,Professional and Contractors Fees,28/09/2023,30026158,479.37 ,Phs Group
East Lindsey District Council,http://statistics.data.gov.uk/id/local-authority/32UC,Property,Professional and Contractors Fees,28/09/2023,30026193,246.00 ,M.A.P Security Solutions Ltd
East Lindsey District Council,http://statistics.data.gov.uk/id/local-authority/32UC,Waste,Workshop Parts,28/09/2023,30025588,"1,285.14 ",Bucher Municipal
East Lindsey District Council,http://statistics.data.gov.uk/id/local-authority/32UC,Waste,Workshop Parts,28/09/2023,30025589,918.15 ,Bucher Municipal
East Lindsey District Council,http://statistics.data.gov.uk/id/local-authority/32UC,Waste,Workshop Parts,28/09/2023,30025660,962.50 ,Partic Motor Spares Ltd
East Lindsey District Council,http://statistics.data.gov.uk/id/local-authority/32UC,Waste,Workshop Parts,28/09/2023,30025661,329.64 ,Partic Motor Spares Ltd
East Lindsey District Council,http://statistics.data.gov.uk/id/local-authority/32UC,Waste,Workshop Parts,28/09/2023,30026167,289.89 ,Pentagon Motor Group
